[Event "1st Serbian League 2022"]
[Site "Vrnjacka Banja"]
[Date "2022.09.25"]
[Round "6.14"]
[White "Puranik, Abhimanyu"]
[Black "Ivic, Velimir"]
[Result "0-1"]
[ECO "A11"]
[WhiteElo "2603"]
[BlackElo "2553"]
[Annotator "TA"]
[PlyCount "48"]
[EventDate "2022.09.20"]
[EventType "team-tourn"]
[EventCountry "SRB"]
[SourceTitle "playchess.com"]
[Source "ChessBase"]
[SourceQuality "1"]
[TimeControl "40/5400+30:1800+30"]

{[%evp 9,48,0,8,22,6,0,0,-29,0,-9,-12,-17,-16,-66,-63,-107,-111,-87,-43,-279,-238,-251,-299,-279,-276,-267,-246,-331,-312,-633,-648,-626,-621,-800,-781,-797,-788,-783,-768,-29988,-29989]} 1. c4 {[%emt 0:00:20]} c6 {[%emt 0:01:12]} 2. Nf3 {[%emt 0:00:45]} d5 {[%emt 0:00:38]} 3. e3 {[%emt 0:00:58]} Nf6 {[%emt 0:00:28]} 4. Nc3 {[%emt 0:00:32]} Nbd7 {[%emt 0:01:06]} 5. Qc2 {[%emt 0:01:27]} e5 {[%emt 0:00:59]} 6. cxd5 {[%emt 0:01:56] A11: English Opening: 1...c6.} Nxd5 {[%emt 0:00:12]} 7. Be2 {[%emt 0:04:35]} Bd6 {[%emt 0:02:44] [#]} 8. b3 $146 {[%emt 0:10:39] The position is equal.} ({Predecessor:} 8. O-O O-O 9. b3 N7f6 10. Bb2 Bg4 11. h3 Bh5 12. Rad1 Qe7 13. d3 Rad8 14. Ne4 {½-½ (48) Fressinet,L (2693)-Kasimdzhanov,R (2687) Nancy 2011}) 8... O-O {[%emt 0:07:39]} 9. Ne4 {[%emt 0:10:07]} Bc7 {[%emt 0:05:17]} 10. Ba3 {[%emt 0:05:09]} Re8 {[%emt 0:00:16]} 11. g4 {[%emt 0:10:38]} (11. O-O $11) 11... N7f6 $15 {[%emt 0:06:11]} 12. g5 {[%emt 0:03:46]} Nxe4 {[%emt 0:01:09]} 13. Qxe4 {[%emt 0:00:01]} Nf4 {[%emt 0:09:29]} 14. Bf1 $2 {[%emt 0:10:48] [#] This move loses the game for White.} (14. exf4 $15 exf4 15. Qc4) 14... g6 {[%emt 0:15:14] Threatens to win with ...Bf5.} 15. Rg1 {[%emt 0:16:44]} ({Don't blunder} 15. exf4 $2 exf4 16. Qe2 Bg4 $19) 15... Bf5 {[%emt 0:02:03][%cal Bc8f5,Bf5d3,Bd3f1,Bf1g2,Bg2e4][%mdl 32]} 16. Qb4 {[%emt 0:00:23]} Qd5 {[%emt 0:03:57]} 17. Rg3 {[%emt 0:01:01]} Bd3 {[%emt 0:13:38]} 18. Qc3 {[%emt 0:03:02]} Rad8 {[%emt 0:04:27]} 19. Bb2 $2 {[%emt 0:02:56]} (19. Qc5) 19... Ba5 $19 {[%emt 0:04:53]} 20. b4 {[%emt 0:00:23]} Bxf1 {[%emt 0:00:23]} 21. bxa5 {[%emt 0:14:50]} Qb5 {[%emt 0:01:54][%csl Gf1,Gf4][%cal Rb5e2] [#]} 22. Ng1 {[%emt 0:00:00] Prevents Qe2+.} Bg2 {[%emt 0:02:01][%csl Gg2][%cal Rb5f1]} 23. O-O-O {[%emt 0:00:00]} Nd3+ {[%emt 0:00:43]} 24. Kc2 {[%emt 0:00:00]} Be4 {[%emt 0:01:07] Weighted Error Value: White=0.98/Black=0.09 (flawless)} 0-1

[Event "1st Serbian League 2022"]
[Site "Vrnjacka Banja"]
[Date "2022.09.25"]
[Round "6.15"]
[White "Nenezic, Marko"]
[Black "Gagunashvili, Merab"]
[Result "1/2-1/2"]
[ECO "D16"]
[WhiteElo "2528"]
[BlackElo "2552"]
[Annotator "TA"]
[PlyCount "71"]
[EventDate "2022.09.20"]
[EventType "team-tourn"]
[EventCountry "SRB"]
[SourceTitle "playchess.com"]
[Source "ChessBase"]
[SourceQuality "1"]
[TimeControl "40/5400+30:1800+30"]

{[%evp 16,71,25,12,11,0,1,0,4,-3,16,3,15,-20,0,0,23,28,25,12,19,0,0,0,0,0,0,-51,-57,-48,-48,-54,-49,-56,-9,-2,0,0,0,-6,-5,-46,0,0,-2,-49,-8,-151,0,0,1360,0,0,0,0,0,0,0]} 1. d4 {[%emt 0:02:06]} d5 {[%emt 0:00:05]} 2. c4 {[%emt 0:00:08]} c6 {[%emt 0:00:10]} 3. Nf3 {[%emt 0:00:13]} Nf6 {[%emt 0:00:14]} 4. Nc3 {[%emt 0:00:14]} dxc4 {[%emt 0:00:09]} 5. a4 {[%emt 0:00:14]} e6 {[%emt 0:00:25]} 6. e3 {[%emt 0:01:04]} c5 {[%emt 0:00:11]} 7. Bxc4 {[%emt 0:00:20]} Nc6 {[%emt 0:00:11]} 8. O-O {[%emt 0:08:58]} cxd4 {[%emt 0:00:31]} 9. exd4 {[%emt 0:00:05]} Be7 {[%emt 0:00:07] D16: Slav Defence: 5 a4: Lines with 5...Bg4 and 5...Na6.} 10. Bg5 {[%emt 0:05:17]} O-O {[%emt 0:03:11]} 11. Re1 {[%emt 0:00:13]} h6 $1 {[%emt 0:01:56][%mdl 4] outshines the older 11...Bd7.} 12. Be3 {[%emt 0:08:50] [#]} Nd5 $146 {[%emt 0:08:23]} ({Predecessor:} 12... Nb4 13. Rc1 Bd7 14. Ne5 Nbd5 15. Qb3 Bc6 16. Nxc6 bxc6 17. Qc2 Rb8 18. Qd2 Nxe3 19. fxe3 e5 20. Rcd1 {½-½ (20) Gevorgyan,D (2328)-Kirszenberg,M (2103) Le Port Marly 2019}) 13. Qe2 {[%emt 0:08:38]} Ncb4 {[%emt 0:07:35]} 14. a5 {[%emt 0:15:34]} Bf6 {[%emt 0:11:56]} 15. Ne4 {[%emt 0:01:46]} Bd7 {[%emt 0:00:55][%cal Bc8d7,Bd7c6,Bc6d5][%mdl 32]} 16. Nxf6+ {[%emt 0:04:24]} Qxf6 {[%emt 0:00:17]} 17. Ne5 {[%emt 0:01:18]} Bc6 {[%emt 0:10:04]} 18. Qd2 {[%emt 0:19:06]} Rfd8 {[%emt 0:10:06]} 19. Ra3 {[%emt 0:06:20]} Nxe3 {[%emt 0:04:16]} 20. Raxe3 {[%emt 0:00:56]} Qg5 $1 {[%emt 0:03:07][%csl Gc6][%cal Rg5g2] [#]} 21. f3 {[%emt 0:04:52]} (21. f4 $11 Rxd4 22. fxg5 Rxd2 23. g6 fxg6 24. Nxc6 bxc6 25. Rxe6) 21... Nd5 $15 {[%emt 0:01:29]} 22. Bxd5 {[%emt 0:00:10]} Bxd5 {[%emt 0:11:43]} 23. f4 {[%emt 0:00:18]} Qf5 {[%emt 0:02:50]} (23... Qxf4 $2 24. Rf1 Qg5 25. Nxf7 Qxg2+ 26. Qxg2 $18) 24. g4 {[%emt 0:02:51]} Qh7 {[%emt 0:01:31]} (24... Qxf4 25. Rf1 Qg5 26. Nxf7 $16 (26. Rxf7 Rf8 $15)) (24... Qf6 $15) 25. g5 $1 $11 {[%emt 0:04:38][%cal Og5g6]} hxg5 {[%emt 0:05:40]} 26. fxg5 {[%emt 0:00:07][%cal Og5g6]} Qh5 {[%emt 0:03:01]} 27. Rg3 {[%emt 0:01:25] And now Qe3 would win. Active counter play!} Rac8 {[%emt 0:01:23]} 28. Rf1 {[%emt 0:00:31]} Rc7 {[%emt 0:00:46]} (28... Be4 $15 {deserves consideration.} 29. Rc3 (29. Rxf7 $2 Rc2 $19) 29... Rxc3 30. bxc3 f6) 29. Qf4 {[%emt 0:01:08]} Rc2 {[%emt 0:07:09][%csl Gc2,LRb2,LRh2][%cal Rh5h2]} 30. h4 {[%emt 0:01:41]} (30. Qxf7+ $11 Qxf7 31. Nxf7 (31. Rxf7 Rxb2 32. Rc7 Rf8 $11)) 30... Rf8 {[%emt 0:01:24]} (30... Qe2 {gets mated.} 31. Qxf7+ Kh8 {[#]} 32. Qf8+ $3 {[%mdl 512]} (32. Ng4 Qg2+ 33. Rxg2 Rxg2+ 34. Kh1 Rf2+ 35. Kg1 Rg2+ 36. Kh1 Rf2+ 37. Kg1 Rg2+ $11) 32... Rxf8 33. Rxf8+ Kh7 34. g6+ Kh6 35. Rh8#) 31. Rg4 {[%emt 0:00:41]} (31. Ng4 $1 $11) 31... Qxh4 $2 {[%emt 0:02:50]} 32. Rxh4 {[%emt 0:00:51] Threatening mate with Rf2. Really sharp!} Rg2+ {[%emt 0:00:03]} 33. Kh1 {[%emt 0:00:04]} Rf2+ {[%emt 0:00:06] The position is equal.} 34. Kg1 {[%emt 0:01:19]} Rg2+ {[%emt 0:00:04]} 35. Kh1 {[%emt 0:00:04]} Rf2+ {[%emt 0:00:04]} 36. Kg1 {[%emt 0:00:00] Weighted Error Value: White=0.18 (very precise) /Black=0.17 (very precise)} 1/2-1/2

[Event "1st Serbian League 2022"]
[Site "Vrnjacka Banja"]
[Date "2022.09.25"]
[Round "6.16"]
[White "Pap, Misa"]
[Black "Djukic, Nikola"]
[Result "1/2-1/2"]
[ECO "B22"]
[WhiteElo "2381"]
[BlackElo "2536"]
[Annotator "TA"]
[PlyCount "147"]
[EventDate "2022.09.20"]
[EventType "team-tourn"]
[EventCountry "SRB"]
[SourceTitle "playchess.com"]
[Source "ChessBase"]
[SourceQuality "1"]
[TimeControl "40/5400+30:1800+30"]

{[%evp 20,147,0,0,13,0,0,0,0,0,14,0,0,0,0,0,0,0,0,-22,0,-21,-22,-18,-23,-31,-20,-20,-20,-34,-27,-41,-26,-43,-12,-18,-18,-31,-23,-29,-14,-31,-25,-26,-31,-32,-21,-24,-16,-19,-5,-12,0,-26,-26,-26,-26,-142,-142,-142,-142,-142,0,-112,-74,-142,-142,-142,-142,-142,-142,-142,-142,-142,-142,-142,-142,-142,-142,-142,-142,-142,-142,-142,-142,-142,-142,-142,-142,-142,-142,-142,-85,-85,-85,-85,-85,-85,-85,-85,-85,-85,-85,-85,-78,-85,-85,-100,-100,-100,-100,-101,-101,-101,-101,-101,-8,-100,0,0,0,-8,-8,-8,0,-8,-8,-8,0,0]} 1. e4 {[%emt 0:00:04][%cal Be2e4,Be4e5][%mdl 32]} c5 {[%emt 0:00:11]} 2. c3 {[%emt 0:00:20]} Nf6 {[%emt 0:00:07]} 3. e5 {[%emt 0:00:06]} Nd5 {[%emt 0:00:06]} 4. Nf3 {[%emt 0:00:06]} d6 {[%emt 0:00:44]} 5. exd6 {[%emt 0:00:13]} e6 {[%emt 0:00:17]} 6. g3 {[%emt 0:00:13]} Bxd6 {[%emt 0:00:16]} 7. Bg2 {[%emt 0:00:17]} Nc6 {[%emt 0:00:13]} 8. d4 {[%emt 0:00:46]} cxd4 {[%emt 0:00:39]} 9. Nxd4 {[%emt 0:00:05]} Nxd4 {[%emt 0:00:10]} 10. Qxd4 {[%emt 0:00:09]} O-O {[%emt 0:00:07]} 11. O-O {[%emt 0:00:20]} Qc7 {[%emt 0:00:38] B22: Sicilian: 2 c3.} 12. c4 $1 {[%emt 0:00:07][%mdl 4] is recently more successful than 12.Nd2.} Nf6 {[%emt 0:01:38]} 13. Nc3 {[%emt 0:05:03]} Bd7 {[%emt 0:00:12]} 14. Rd1 {[%emt 0:08:07]} Be5 {[%emt 0:08:35]} 15. Bf4 {[%emt 0:01:32]} (15. Qe3 {is more complex.} a6 16. Bxb7 Qxb7 17. Qxe5 Bc6 18. Bh6) 15... Bxf4 {[%emt 0:02:30]} 16. Qxf4 {[%emt 0:00:13]} Qxf4 {[%emt 0:02:39]} 17. gxf4 {[%emt 0:00:05] [#]} Rab8 $146 {[%emt 0:13:52]} ({Predecessor:} 17... Rac8 18. Rd4 Bc6 19. Rad1 g6 20. b3 a6 21. Rd6 Bxg2 22. Kxg2 Rc5 23. Rb6 Rb8 {0-1 (60) Oberoi,S (2198)-Preotu,R (2462) Richardson 2022}) 18. Rd4 {[%emt 0:07:04]} Rfc8 {[%emt 0:05:21]} 19. Rad1 {[%emt 0:03:05]} Be8 {[%emt 0:02:03]} 20. Ne4 {[%emt 0:23:08]} Nxe4 {[%emt 0:00:34]} 21. Bxe4 {[%emt 0:00:19]} g6 {[%emt 0:05:58]} 22. b3 {[%emt 0:09:54]} Kf8 {[%emt 0:02:43]} 23. h4 {[%emt 0:01:46]} Ke7 {[%emt 0:07:07]} 24. Kg2 {[%emt 0:00:38]} Rc7 {[%emt 0:04:32]} 25. Bf3 {[%emt 0:01:43]} b6 {[%emt 0:10:09]} 26. Rh1 {[%emt 0:00:47]} Bc6 {[%emt 0:10:35]} 27. Bxc6 {[%emt 0:03:38]} Rxc6 $11 {[%emt 0:00:10][%mdl 4096] Endgame KRR-KRR} 28. Rhd1 {[%emt 0:00:10] And now Rd7+ would win.} Rc7 {[%emt 0:03:33] Prevents Rd7+.} 29. R1d3 $1 {[%emt 0:09:26]} b5 {[%emt 0:08:18]} 30. Kg3 {[%emt 0:01:05]} Rb6 {[%emt 0:02:43]} 31. cxb5 {[%emt 0:09:37]} Rxb5 {[%emt 0:00:08]} 32. b4 {[%emt 0:02:50]} Rb6 {[%emt 0:02:49]} 33. a3 {[%emt 0:01:19]} Rbc6 {[%emt 0:01:03]} 34. b5 {[%emt 0:01:40]} Rc3 {[%emt 0:03:03]} 35. Rd7+ {[%emt 0:01:41]} Kf6 {[%emt 0:01:00]} 36. f3 {[%emt 0:00:30]} Rxd3 {[%emt 0:00:31]} 37. Rxd3 {[%emt 0:00:12] KR-KR} Rc4 {[%emt 0:00:08]} 38. Rb3 {[%emt 0:03:05]} ({Much worse is} 38. Rd7 Ra4 39. Rd3 Ra5 $17) (38. Rd8 $11 {keeps the balance.}) 38... Ra4 $1 $17 {[%emt 0:00:18]} 39. Rc3 {[%emt 0:00:31]} Ra5 {[%emt 0:00:54]} 40. Rb3 {[%emt 0:00:31]} Ra4 {[%emt 0:01:37]} 41. Rc3 {[%emt 0:30:24]} h5 {[%emt 0:07:03]} 42. Re3 {[%emt 0:00:00]} ({White should try} 42. Rb3) 42... Ke7 {[%emt 0:07:23]} 43. Rd3 {[%emt 0:00:00]} Ra5 {[%emt 0:04:07]} 44. Rb3 {[%emt 0:00:00]} Kd7 {[%emt 0:00:32]} 45. b6 {[%emt 0:00:00]} axb6 {[%emt 0:00:10]} 46. Rxb6 {[%emt 0:00:00]} Rxa3 {[%emt 0:00:07]} 47. Rb7+ {[%emt 0:00:00]} Ke8 {[%emt 0:00:07]} 48. Rb8+ {[%emt 0:00:00]} Ke7 {[%emt 0:00:10]} 49. Rb7+ {[%emt 0:00:00]} Kf6 {[%emt 0:00:05]} 50. Rc7 {[%emt 0:00:00]} Ra8 {[%emt 0:00:57]} 51. Rb7 {[%emt 0:00:00]} Re8 {[%emt 0:00:13]} 52. Ra7 {[%emt 0:00:00]} Re7 {[%emt 0:00:08]} 53. Ra6 {[%emt 0:00:00]} Rd7 {[%emt 0:00:25]} 54. Ra5 {[%emt 0:00:00]} Rd5 {[%emt 0:08:54]} 55. Ra7 {[%emt 0:00:00]} e5 {[%emt 0:00:32]} (55... Rd2 $142 56. Ra4 Rd1) 56. fxe5+ {[%emt 0:00:00]} Rxe5 {[%emt 0:00:07]} 57. Ra6+ {[%emt 0:00:00]} Kf5 {[%emt 0:00:22]} 58. Ra7 {[%emt 0:00:00]} f6 {[%emt 0:00:11]} 59. Rh7 {[%emt 0:00:00]} Ra5 {[%emt 0:00:44]} 60. Rh8 {[%emt 0:00:00]} Ra1 {[%emt 0:01:07]} 61. Rb8 {[%emt 0:00:00]} Rg1+ {[%emt 0:00:52]} 62. Kh2 {[%emt 0:00:00]} Re1 {[%emt 0:00:47]} 63. Kg3 {[%emt 0:00:00]} g5 {[%emt 0:00:25]} 64. Rh8 {[%emt 0:00:00]} Kg6 $1 {[%emt 0:01:03]} 65. hxg5 {[%emt 0:00:00]} fxg5 {[%emt 0:00:08]} 66. Rg8+ {[%emt 0:00:00]} Kf6 {[%emt 0:00:05]} 67. Rh8 {[%emt 0:00:00] [#]} h4+ {[%emt 0:01:06]} (67... Rh1 $1 $17 68. Rh6+ Kg7) 68. Kf2 {[%emt 0:00:00] [#]} (68. Kh3 $11) 68... Ra1 {[%emt 0:00:20]} ({Black should play} 68... Re5 $1 $17 69. f4 Re4 70. fxg5+ Kf5) 69. f4 $1 $11 {[%emt 0:00:00] The position is equal.} Ra2+ {[%emt 0:00:31]} 70. Kg1 {[%emt 0:00:00]} gxf4 {[%emt 0:01:09] aiming for ...Kg5.} 71. Rxh4 {[%emt 0:00:00]} Kg5 {[%emt 0:00:33]} 72. Rh3 {[%emt 0:00:00]} Kg4 {[%emt 0:00:07]} 73. Rb3 {[%emt 0:00:00]} f3 {[%emt 0:00:13] ( -> ...Kg3)} 74. Rb8 {[%emt 0:00:00] And White is the lucky defender.  Weighted Error Value: White=0.10 (very precise) /Black=0.07 (flawless)} 1/2-1/2

[Event "1st Serbian League 2022"]
[Site "Vrnjacka Banja"]
[Date "2022.09.25"]
[Round "6.17"]
[White "Strikovic, Aleksa"]
[Black "Savic, Miodrag R"]
[Result "0-1"]
[ECO "B01"]
[WhiteElo "2491"]
[BlackElo "2406"]
[Annotator "TA"]
[PlyCount "84"]
[EventDate "2022.09.20"]
[EventType "team-tourn"]
[EventCountry "SRB"]
[SourceTitle "playchess.com"]
[Source "ChessBase"]
[SourceQuality "1"]
[TimeControl "40/5400+30:1800+30"]

{[%evp 9,84,25,36,33,47,16,19,11,23,12,28,4,29,23,33,22,31,36,35,22,34,31,25,35,30,17,21,14,11,0,0,0,0,-18,-21,-30,-21,-18,-26,-17,-37,-20,0,0,0,0,13,-68,-64,-64,-60,-68,-64,-91,-99,-132,-113,-260,-262,-242,-268,-257,-255,-481,-277,-552,-543,-2484,-734,-766,-720,-5314,-2196,-1770,-976,-1430,-1273]} 1. e4 {[%emt 0:00:04]} d5 {[%emt 0:00:41]} 2. exd5 {[%emt 0:00:07]} Qxd5 {[%emt 0:00:13]} 3. Nc3 {[%emt 0:00:08]} Qa5 {[%emt 0:03:43]} 4. d4 {[%emt 0:00:07]} Nf6 {[%emt 0:00:34]} 5. a3 {[%emt 0:00:08]} c6 {[%emt 0:01:29]} 6. Bd3 {[%emt 0:00:18] B01: Scandinavian Defence.} Bg4 {[%emt 0:01:01]} 7. f3 {[%emt 0:00:06]} Bh5 {[%emt 0:00:08]} 8. Nge2 {[%emt 0:00:11] The position is equal.} e6 {[%emt 0:02:06]} 9. O-O {[%emt 0:01:03]} Nbd7 {[%emt 0:05:39]} 10. Bf4 {[%emt 0:10:14]} Qb6 {[%emt 0:05:34]} 11. Na4 {[%emt 0:14:30]} Qd8 {[%emt 0:00:27] [#]} 12. c4 $146 {[%emt 0:00:06]} ({Predecessor:} 12. Bg5 Qa5 13. Bxf6 Nxf6 14. c4 Bg6 15. b4 Qg5 16. f4 Qh4 17. Rf3 Ng4 18. h3 {½-½ (54) Halas,M (1939)-Mohapl,P (2105) Tatranske Zruby 2009}) 12... Be7 {[%emt 0:03:14]} 13. Qb3 {[%emt 0:05:34]} b6 {[%emt 0:01:03]} 14. Rad1 {[%emt 0:00:23][%cal Od4d5]} O-O {[%emt 0:01:01]} 15. Nac3 {[%emt 0:01:41]} Bg6 {[%emt 0:11:15]} 16. Bxg6 {[%emt 0:15:46]} hxg6 {[%emt 0:00:08]} 17. h3 {[%emt 0:00:05]} Qc8 {[%emt 0:01:39]} 18. Bh2 {[%emt 0:10:02]} Bd8 {[%emt 0:06:30]} 19. Nc1 {[%emt 0:19:29]} Bc7 {[%emt 0:01:04]} 20. Bxc7 {[%emt 0:00:19]} Qxc7 {[%emt 0:00:03]} 21. f4 {[%emt 0:00:05]} a6 {[%emt 0:04:49]} 22. Nd3 {[%emt 0:00:57]} c5 {[%emt 0:01:55]} 23. d5 {[%emt 0:03:37]} exd5 {[%emt 0:00:54]} 24. Nxd5 {[%emt 0:00:03]} Nxd5 {[%emt 0:01:20]} 25. cxd5 {[%emt 0:00:02][%cal Od5d6]} c4 {[%emt 0:17:58]} 26. Qc3 {[%emt 0:00:25]} Rfe8 {[%emt 0:08:58][%cal Bf8e8,Be8e4,Be4d4,Bd4d3][%mdl 32] Prevents Ne5.} 27. Nb4 {[%emt 0:00:14]} Re4 {[%emt 0:06:18]} 28. Nc6 {[%emt 0:04:46]} (28. d6 $11 Qc5+ 29. Kh1) 28... Nf6 $15 {[%emt 0:00:36][%cal Of6d5]} 29. Qf3 {[%emt 0:07:59]} Rae8 {[%emt 0:00:18][%cal Of6d5]} 30. Ne5 $1 {[%emt 0:00:05]} Rd8 {[%emt 0:03:10]} 31. Ng4 {[%emt 0:00:36] [#] And now Nxf6+ would win.} Qc5+ {[%emt 0:00:45]} 32. Kh1 {[%emt 0:00:01] Strongly threatening Nxf6+.} Rd4 {[%emt 0:02:08] Black is more active.} 33. Ne3 {[%emt 0:02:10] Loses the game.} (33. Rxd4 $17 {is a better defense.} Qxd4 34. Ne5 (34. Nxf6+ gxf6 35. Qf2 Rxd5 $17) 34... Rxd5 35. Kh2) 33... Rd3 $19 {[%emt 0:02:59]} ({Resist} 33... Nxd5 34. Rxd4 Qxd4 35. Rd1 Qxb2 36. Nxd5 $18) 34. Rxd3 {[%emt 0:03:28]} cxd3 {[%emt 0:00:03][%cal Bc4d3,Bd3d2][%mdl 32]} 35. Rd1 {[%emt 0:00:06]} Qd4 {[%emt 0:00:24]} ({Not} 35... Nxd5 36. Rxd3 Nxe3 37. Rxd8+ Kh7 38. Kh2 $16) 36. g3 $2 {[%emt 0:02:45]} (36. Kh2) 36... Nxd5 {[%emt 0:03:39]} (36... Re8 $142 37. Nf1 Ne4) 37. Ng4 {[%emt 0:00:02]} (37. Nxd5 Rxd5 38. Rd2) 37... d2 {[%emt 0:01:39] Black is clearly winning.} 38. Ne5 {[%emt 0:00:24]} Rc8 {[%emt 0:01:42]} (38... Ne3 $142 39. Nc6 Qa4 40. Nxd8 Qxd1+ 41. Qxd1 Nxd1 42. Nxf7 Ne3 43. Kg1 d1=Q+ 44. Kf2 Qd2+ 45. Kf3 Kxf7 46. h4 Nc2 47. f5 gxf5 48. g4 Ne1+ 49. Kg3 f4+ 50. Kh3 Qg2#) 39. Nd3 {[%emt 0:01:11]} Rc2 {[%emt 0:00:29] [#] ...Ne3 is the strong threat.} 40. Nf2 {[%emt 0:00:40]} Rc1 {[%emt 0:02:01]} 41. Kh2 {[%emt 0:30:29]} f5 {[%emt 0:08:01] White must now prevent ...Ne3.} 42. g4 {[%emt 0:00:00]} Ne3 {[%emt 0:04:53] Weighted Error Value: White=0.79/Black=0.44} 0-1

[Event "1st Serbian League 2022"]
[Site "Vrnjacka Banja"]
[Date "2022.09.25"]
[Round "6.18"]
[White "Radovanovic, Mihajlo"]
[Black "Perunovic, Miodrag"]
[Result "1-0"]
[ECO "A25"]
[WhiteElo "2438"]
[BlackElo "2413"]
[Annotator "TA"]
[PlyCount "81"]
[EventDate "2022.09.20"]
[EventType "team-tourn"]
[EventCountry "SRB"]
[SourceTitle "playchess.com"]
[Source "ChessBase"]
[SourceQuality "1"]
[TimeControl "40/5400+30:1800+30"]

{[%evp 9,81,-11,0,0,9,6,17,24,33,12,14,20,41,33,37,36,54,8,16,8,14,0,16,0,27,27,29,0,78,71,69,14,67,53,98,94,92,93,86,79,84,59,70,27,20,19,86,64,48,54,50,35,27,-10,-9,-2,-15,0,-23,-9,116,114,114,114,1232,1040,29966,1533,1449,1445,778,233,964,817]} 1. c4 {[%emt 0:00:05]} e5 {[%emt 0:00:48]} 2. Nc3 {[%emt 0:00:19]} Nf6 {[%emt 0:00:45]} 3. e3 {[%emt 0:00:41]} Nc6 {[%emt 0:01:24]} 4. Qb3 {[%emt 0:00:22]} Bb4 {[%emt 0:02:44]} 5. Nge2 {[%emt 0:00:19]} O-O {[%emt 0:01:42]} 6. a3 {[%emt 0:00:21] A25: English Opening vs King's Indian with ...Nc6 but without early d3.} Bc5 {[%emt 0:02:41] [#]} 7. g3 $146 {[%emt 0:00:43]} ({Predecessor:} 7. Ng3 d6 8. Bd3 a5 9. Qc2 Ne7 10. b3 c6 11. Bb2 Bb6 12. Rc1 Be6 13. O-O {1-0 (33) Harikrishna,P (2646)-Stripunsky,A (2565) Minneapolis 2005}) 7... Re8 {[%emt 0:04:16]} 8. Bg2 {[%emt 0:01:01] The position is equal.} a6 {[%emt 0:04:40]} 9. O-O {[%emt 0:01:44]} Ba7 {[%emt 0:05:50]} 10. Qc2 {[%emt 0:07:35]} Rb8 {[%emt 0:00:23]} 11. b4 {[%emt 0:02:12]} d6 {[%emt 0:00:58]} 12. Bb2 {[%emt 0:02:16]} Ne7 {[%emt 0:01:54]} 13. Nd5 {[%emt 0:08:38]} (13. Ne4 $14 {deserves consideration.}) 13... Nfxd5 {[%emt 0:02:29]} 14. cxd5 {[%emt 0:00:07]} Bf5 {[%emt 0:00:07]} 15. Qb3 {[%emt 0:07:38]} Qd7 {[%emt 0:00:01]} 16. f4 {[%emt 0:02:10]} Ng6 {[%emt 0:01:07]} 17. fxe5 {[%emt 0:02:16]} dxe5 {[%emt 0:01:26]} 18. Rf2 {[%emt 0:12:14]} Re7 {[%emt 0:03:08]} (18... Bh3 $11 {keeps the balance.}) 19. Nc3 {[%emt 0:06:47]} Bh3 {[%emt 0:06:30]} 20. Bh1 {[%emt 0:04:19]} (20. Bxh3 $14 Qxh3 21. Raf1) 20... h5 {[%emt 0:02:29]} (20... Kh8 $11) 21. Ne4 {[%emt 0:03:47]} h4 {[%emt 0:01:53]} 22. Bf3 {[%emt 0:04:09]} Rf8 {[%emt 0:06:03]} 23. Ng5 {[%emt 0:06:54]} hxg3 {[%emt 0:21:03]} 24. hxg3 {[%emt 0:00:21] Bh5 is the strong threat.} Qf5 {[%emt 0:00:11]} 25. Nxh3 {[%emt 0:02:14]} ({Don't go for} 25. Rh2 $2 Qxg5 26. Rxh3 Nf4 $19) 25... Qxh3 {[%emt 0:00:13]} 26. Be2 {[%emt 0:06:44]} (26. Raf1 $5 {[%cal Rf2h2]}) 26... Qxg3+ {[%emt 0:09:58]} 27. Rg2 {[%emt 0:00:07]} Qh3 {[%emt 0:00:02] [#]} (27... Qh4 $1 $11) 28. Rf1 $1 $16 {[%emt 0:03:43][%mdl 1024] White has strong compensation.} Qh6 {[%emt 0:02:52]} 29. Rh2 {[%emt 0:01:40] Active counter play!} Nh4 {[%emt 0:04:38]} 30. Qc4 {[%emt 0:01:18]} (30. Kh1 $5 {[%cal Rb3c4]} g5 31. a4 $16) 30... g5 {[%emt 0:00:33]} 31. Rhf2 {[%emt 0:02:04] And now Rf6 would win.} b5 $1 {[%emt 0:04:49]} 32. Qe4 $132 {[%emt 0:03:06][%mdl 2048] [#] aiming for Rf6. White has counterplay} f5 {[%emt 0:00:18]} 33. Rxf5 {[%emt 0:01:19]} Nxf5 {[%emt 0:01:36]} 34. Rxf5 {[%emt 0:00:02]} Rh7 {[%emt 0:03:20]} (34... Rxf5 $11 {remains equal.} 35. Qxf5 Qh7 36. Qc8+ Kf7) 35. Rxf8+ {[%emt 0:00:25]} Kxf8 {[%emt 0:00:01]} 36. Bxe5 {[%emt 0:00:18][%cal Od5d6] Hoping for d6! The board is on fire. This bishop pair is nice.} Rf7 $2 {[%emt 0:02:21][%mdl 8192] This move loses the game for Black.} (36... Bb8 $16) 37. d6 $18 {[%emt 0:01:35] White wants to mate with Qa8+.} ({Less strong is} 37. Qg4 Re7 38. Qf5+ Kg8 $18) 37... c6 {[%emt 0:01:46]} 38. Qxc6 {[%emt 0:00:41]} (38. Qg4 $142 Kg8 39. Bd1 Bc5 40. bxc5 Rf6 41. d7 Rf8 42. Bb3+ Kh7 43. Qe4+ Qg6 44. Qh1+ Qh6 45. Bc2+ Kg8 46. Qxh6 Rf1+ 47. Kxf1 Kf7 48. d8=Q g4 49. Qg6#) 38... Qe6 {[%emt 0:00:01]} 39. Qa8+ {[%emt 0:03:15]} Qe8 {[%emt 0:00:09]} 40. Qxe8+ {[%emt 0:02:34]} Kxe8 {[%emt 0:00:06]} 41. Bh5 {[%emt 0:30:40] Weighted Error Value: White=0.12 (very precise) /Black=0.37} 1-0